Workbook

Sheet C2 Instructions (hidden)
A1: The purpose of this sheet is to analyze the operations and determine any Constraints within the System Level Analysis.
A3: A Constraint is defined as the operation with highest utilization in the Production Line.
A4: A Concern Constraint is any operation where the utilization is over 85%
A5: A Problem Constraint is any operation where the utilization is over 90%.
A7: This sheet is to be used to estimate the capacity at the system level.
A8: It should be noted that this spreadsheet provides an initial estimate only as it ignores all interactions between component lines.
A9: Please input data into NON-SHADED cells only. The shaded cells are calculated automatically and are password protected.
A10: Some column headings have comments associated with them in order to explain the headings better which show up as little red marks on the top right hand corner of the cell they are associated with.
A11: To view the comment, point the mouse at the cell (or the red mark) and hover. There is no need to click on the field to see the comment.
A12: There are four sheets in this workbook.
A13: C2 Instructions
A14: C2 System Level Capacity
A15: C2 Example - an example of what a completed System Level Capacity Estimate looks like.
A18: Description of NON-Calculating Input Data fields in this capacity estimation tool:
A19: Supplier Name: input the name & location of supplier production for this part.
A20: Part(s) Name: input the part name based on the part contract. When the sheet applies to multiple parts, specify name of all the parts.
A21: Part(s) Number: input the Allison's part number (not the supplier's internal part number).
A22: When the sheet applies to multiple (family) parts, specify number of all the parts, starting with the part with the highest production quantity and ending with the part with the lowest quantity.
A23: Working Days per Year: input the number of working days per year the supplier operates as agreed upon in the contract.
A24: Contracted Capacity : input the CONTRACTED yearly and daily capacity.
A25: CONTRACTED CAPACITY SHOULD BE YEARLY CAPACITY/WORKING DAYS PER YEAR
A26: Increased Contracted Capacity: input the increased CONTRACTED yearly and daily capacity.
A27: INCREASED CONTRACTED CAPACITY SHOULD BE YEARLY CAPACITY/WORKING DAYS PER YEAR
A30: Production System: input each separate production/or operation line separately.
A32: System Availability - Where there is no value to enter in each field, enter a 0.
A33: Shifts per Week: input the number of working shifts per week for this production line.
A34: Shifts per Day: input the number of working shifts per day for this production line.
A35: Minutes per shift: input the number of total minutes per shift for this production line.
A36: Scheduled Breaks: input in minutes the time spent PER DAY for breaks, lunches, meetings, any other scheduled breaks on this production line if production stops during these events.
A37: Changeovers/Tool change: input in minutes the time spent PER DAY for tool changes, setups on this production line, if production stops during tool changes & setups.
A38: Planned Maintenance: input in minutes the time spent PER DAY for planned/scheduled maintenance on this production line.
A39: Unscheduled Downtime: input an ESTIMATE in minutes the time spent PER DAY for all UNSCHEDULED downtime (breakdowns) in this production line.
A41: System Capacity - Where there is no value to enter in each field, enter a 0.
A42: Time allocated for other customers: input the total time (in minutes) allocated for other customers on this production line.
A43: The definition of "other customers" includes all production for other products designated for Allison, which are not reflected in this Capacity Estimate.
A44: Line Cycle Time Per Part: input the cycle time of the line in SECONDS PER PART.
A45: NOTE - If the final operation of the line produces more than one part per cycle, the Line Cycle time should be calculated by dividing the observed cycle time by the number of parts produced per cycle.
A46: Buffer Before/After Operation
A47: % Scrap: input the scrap rate for this production line (enter as percentage, not fraction. Example: enter a 5% scrap rate as 5 not 0.05).
A48: CONTRACTED parts/day: input NEWLY contracted parts PER DAY which includes service parts requirement.
A49: RESULT - Where the Utilization is greater than 90%, a red X will appear in the Result Column. This identifies the Problem Constraint Operations.
A50: RESULT - Where the Utilization is greater than 85%, a yellow triangle ▲ will appear in the Result Column. This identifies the Concern Constraint Operations.
A53: Actual Run at Rate Study Results
A54: Run at Rate Actual OK parts produced: input the number of OK parts produced during the run at rate study.
A55: Available Capacity > Contracted Capacity: If the available capacity of the system is greater than the contracted capacity, input "YES", otherwise input "NO".
A56: Run at Rate Actual Scrap: input the number of parts scrapped during the run at rate study.
A57: Run at Rate Actual Downtime: input the downtime in minutes during the run at rate study.

Sheet C2 System Level Capacity (hidden)
A1: Supplier Name
A2: Part(s) Name
A3: Part(s) Number | R3: Complete Date
A4: Working Days per Year | R4: Completed by
A5: Contracted Capacity | C5: Annual | F5: Daily | R5: SQE Review Date | AG5: ▲
A6: Increased Contracted Capacity | C6: Annual | F6: Daily | R6: SQE Reviewed
A8: PRODUCTION SYSTEM | C8: SYSTEM AVAILABILITY (TIME) | L8: SYSTEM CAPACITY (UNITS) | U8: Post Process Buffer | X8: RUN at RATE STUDY RESULTS
A9: List each separate OPERATION in production line | C9: Shifts Per Week | D9: Shifts per Day | E9: Minutes Per Shift | F9: Gross Min Avail/ day | G9: Scheduled Break/Lunch (minutes per day) | H9: Changeovers/Tool Changes (minutes per day) | I9: Planned Maintenance (minutes per day) | J9: Unscheduled Downtime (minutes per day) | K9: Net Available Minutes/day | L9: Time allocated for other customers (minutes) | M9: Net Minutes Available/day for Study Parts | N9: LINE Cycle Time Per Part (seconds) | O9: % Scrap | P9: % True Scrap (Total Loss) | Q9: Estimated Throughput for study parts per day | R9: CONTRACTED parts per day | S9: % Utilization | T9: Result >85% Concern >90 Problem | U9: Minimum | V9: Maximum | X9: Total "All Customers" Parts Produced | Y9: Run at Rate Actual OK parts produced | Z9: Available Capacity > Contracted Capacity? | AA9: Run at Rate Actual Scrap (part count) | AB9: Run at Rate Actual Downtime (minutes)
A10: 1 | F10: =D10*E10 -> 0 | K10: =F10-G10-H10-I10-J10 -> 0 | M10: =K10-L10 -> 0 | P10: =SUM(O10:O29) -> 0 | Q10: =IF(N10>0,(1-P10)*M10*60/N10,0) -> 0 | S10: =IF(Q10<>0,R10/Q10,0) -> 0 | T10: =IF(S10>0.8499,IF(S10>0.8999,"X",$AG$5),"") ->  | Z10: YES/NO
A11: 2 | F11: 0 | K11: 0 | M11: 0 | P11: =P10-O11 -> 0 | Q11: =IF(N11<>0,(1-P11)*M11*60/N11,0) -> 0 | S11: 0 | Z11: YES/NO
A12: 3 | F12: 0 | K12: 0 | M12: 0 | P12: =P11-O12 -> 0 | Q12: 0 | S12: =IF(Q12<>0,R12/Q12,0) -> 0 | Z12: YES/NO
A13: 4 | F13: 0 | K13: 0 | M13: 0 | P13: 0 | Q13: 0 | S13: 0 | Z13: YES/NO
A14: 5 | F14: 0 | K14: 0 | M14: 0 | P14: 0 | Q14: 0 | S14: 0 | Z14: YES/NO
A15: 6 | F15: 0 | K15: 0 | M15: 0 | P15: 0 | Q15: 0 | S15: 0 | Z15: YES/NO
A16: 7 | F16: 0 | K16: 0 | M16: 0 | P16: 0 | Q16: 0 | S16: 0 | Z16: YES/NO
A17: 8 | F17: 0 | K17: 0 | M17: 0 | P17: 0 | Q17: 0 | S17: 0 | Z17: YES/NO
A18: 9 | F18: 0 | K18: 0 | M18: 0 | P18: 0 | Q18: 0 | S18: 0 | Z18: YES/NO
A19: 10 | F19: 0 | K19: 0 | M19: 0 | P19: 0 | Q19: 0 | S19: 0 | Z19: YES/NO
A20: 11 | F20: 0 | K20: 0 | M20: 0 | P20: 0 | Q20: 0 | S20: 0 | Z20: YES/NO
A21: 12 | F21: 0 | K21: 0 | M21: 0 | P21: 0 | Q21: 0 | S21: 0 | Z21: YES/NO
A22: 13 | F22: 0 | K22: 0 | M22: 0 | P22: 0 | Q22: 0 | S22: 0 | Z22: YES/NO
A23: 14 | F23: 0 | K23: 0 | M23: 0 | P23: 0 | Q23: 0 | S23: 0 | Z23: YES/NO
A24: 15 | F24: 0 | K24: 0 | M24: 0 | P24: 0 | Q24: 0 | S24: 0 | Z24: YES/NO
A25: 16 | F25: 0 | K25: 0 | M25: 0 | P25: 0 | Q25: 0 | S25: 0 | Z25: YES/NO
A26: 17 | F26: 0 | K26: 0 | M26: 0 | P26: 0 | Q26: 0 | S26: 0 | Z26: YES/NO
A27: 18 | F27: 0 | K27: 0 | M27: 0 | P27: 0 | Q27: 0 | S27: 0 | Z27: YES/NO
A28: 19 | F28: 0 | K28: 0 | M28: 0 | P28: 0 | Q28: 0 | S28: 0 | Z28: YES/NO
A29: 20 | F29: 0 | K29: 0 | M29: 0 | P29: 0 | Q29: 0 | S29: 0 | T29: =IF(S29>0.8499,IF(S29>0.8999,"X",AG24),"") ->  | Z29: YES/NO
A31: Notes/Comments
B36: Legend | C36: ▲ | D36: Concern constraint - please check operations
C37: X | D37: Problem constraint - requires C3

Sheet C2 Example (hidden)
A1: Supplier Name | C1: XYZ Inc. | AG1: ▲
A2: Part(s) Name | C2: XYZ Assembly
A3: Part(s) Number | C3: XYZ000123 | R3: Complete Date | W3: 2008-08-01
A4: Working Days per Year | C4: 235 | R4: Completed by | W4: Bill the Supplier
A5: Contracted Capacity | C5: Annual | D5: 258500 | F5: Daily | G5: 1100 | R5: SQE Review Date | W5: 2008-08-25 | AG5: ▲
A6: Increased Contracted Capacity | C6: Annual | D6: 300000 | F6: Daily | G6: 1277 | R6: SQE Reviewed | W6: Joe the SQE
A8: PRODUCTION SYSTEM | C8: SYSTEM AVAILABILITY (TIME) | L8: SYSTEM CAPACITY (UNITS) | V8: Post Process Buffer | X8: RUN at RATE STUDY RESULTS
A9: List each separate OPERATION in production line | C9: Shifts Per Week | D9: Shifts per Day | E9: Minutes Per Shift | F9: Gross Min Avail/day | G9: Scheduled Break/Lunch (minutes per day) | H9: Changeovers/Tool Changes (minutes per day) | I9: Planned Maintenance (minutes per day) | J9: Unscheduled Downtime (minutes per day) | K9: Net Available Minutes/day | L9: Time allocated for other customers (minutes) | M9: Net Minutes Available/day for Study Parts | N9: LINE Cycle Time Per Part (seconds) | O9: % Scrap | P9: % True Scrap (Total Loss) | Q9: Estimated Throughput for study parts per day | R9: NEW CONTRACTED parts per day | S9: % Utilization | T9: Result >85% Concern >90 Problem | U9: RESULT: Mark X for possible constraint operation (>85%) | V9: Minimum | X9: Total "All Customers" Parts Produced | Y9: Run at Rate Actual OK parts produced | Z9: Available Capacity > Contracted Capacity? | AA9: Run at Rate Actual Scrap (part count) | AB9: Run at Rate Actual Downtime (minutes)
A10: 1 | B10: OP C10 | C10: 15 | D10: 3 | E10: 480 | F10: =D10*E10 -> 1440 | G10: 150 | H10: 45 | I10: 0 | J10: 70 | K10: =F10-G10-H10-I10-J10 -> 1175 | L10: 367 | M10: =K10-L10 -> 808 | N10: 11 | O10: 0.04 | P10: =SUM(O10:O29) -> 0.28 | Q10: =IF(N10>0,(1-P10)*M10*60/N10,0) -> 3173.236364 | R10: 1277 | S10: =IF(Q10<>0,R10/Q10,0) -> 0.4024282637 | T10: =IF(S10>0.8499,IF(S10>0.8999,"X",$AG$5),"") ->  | V10: 400 | Z10: YES/NO
A11: 2 | B11: OP C20 | C11: 15 | D11: 3 | E11: 480 | F11: 1440 | G11: 150 | H11: 45 | I11: 0 | J11: 75 | K11: 1170 | L11: 384 | M11: 786 | N11: 11.5 | O11: 0.02 | P11: =P10-O11 -> 0.26 | Q11: =IF(N11<>0,(1-P11)*M11*60/N11,0) -> 3034.643478 | R11: 1277 | S11: =IF(Q11<>0,R11/Q11,0) -> 0.4208072576 | V11: 400 | Z11: YES/NO
A12: 3 | B12: SUB-ASSEMBLY C | C12: 15 | D12: 3 | E12: 480 | F12: 1440 | G12: 150 | H12: 45 | I12: 0 | J12: 60 | K12: 1185 | L12: 567 | M12: 618 | N12: 31 | O12: 0.01 | P12: =P11-O12 -> 0.25 | Q12: 897.0967742 | R12: 1277 | S12: =IF(Q12<>0,R12/Q12,0) -> 1.423480762 | T12: X | U12: X | V12: 0 | Z12: YES/NO
A13: 4 | B13: OP A10 | C13: 15 | D13: 3 | E13: 480 | F13: 1440 | G13: 150 | H13: 45 | I13: 0 | J13: 90 | K13: 1155 | L13: 434 | M13: 721 | N13: 26 | O13: 0.06 | P13: 0.19 | Q13: 1347.715385 | R13: 1277 | S13: 0.9475294373 | T13: X | V13: 200 | Z13: YES/NO
A14: 5 | B14: OP A20 | C14: 15 | D14: 3 | E14: 480 | F14: 1440 | G14: 150 | H14: 45 | I14: 0 | J14: 215 | K14: 1030 | L14: 367 | M14: 663 | N14: 22 | O14: 0.06 | P14: 0.13 | Q14: 1573.118182 | R14: 1277 | S14: 0.8117635501 | V14: 200 | Z14: YES/NO
A15: 6 | B15: SUB-ASSEMBLY A | C15: 15 | D15: 3 | E15: 480 | F15: 1440 | G15: 150 | H15: 45 | I15: 0 | J15: 80 | K15: 1165 | L15: 450 | M15: 715 | N15: 26 | O15: 0.02 | P15: 0.11 | Q15: 1468.5 | R15: 1277 | S15: 0.8695948247 | T15: ▲ | V15: 500 | Z15: YES/NO
A16: 7 | B16: OP B10 | C16: 15 | D16: 3 | E16: 480 | F16: 1440 | G16: 150 | H16: 45 | I16: 45 | J16: 15 | K16: 1185 | L16: 484 | M16: 701 | N16: 29 | O16: 0.01 | P16: 0.1 | Q16: 1305.310345 | R16: 1277 | S16: 0.978311407 | T16: X | V16: 500 | Z16: YES/NO
A17: 8 | B17: OP B20 | C17: 15 | D17: 3 | E17: 480 | F17: 1440 | G17: 150 | H17: 45 | I17: 0 | J17: 150 | K17: 1095 | L17: 384 | M17: 711 | N17: 26 | O17: 0.015 | P17: 0.085 | Q17: 1501.303846 | R17: 1277 | S17: 0.8505939709 | T17: ▲ | V17: 400 | Z17: YES/NO
A18: 9 | B18: OP B30 | C18: 5 | D18: 1 | E18: 480 | F18: 480 | G18: 150 | H18: 45 | I18: 0 | J18: 30 | K18: 255 | L18: 100 | M18: 155 | N18: 3 | O18: 0.01 | P18: 0.075 | Q18: 2867.5 | R18: 1277 | S18: 0.4453356582 | V18: 4000 | Z18: YES/NO
A19: 10 | B19: OP B40 | C19: 15 | D19: 3 | E19: 480 | F19: 1440 | G19: 150 | H19: 45 | I19: 0 | J19: 100 | K19: 1145 | L19: 467 | M19: 678 | N19: 28 | O19: 0.01 | P19: 0.065 | Q19: 1358.421429 | R19: 1277 | S19: 0.9400617313 | T19: X | V19: 350 | Z19: YES/NO
A20: 11 | B20: SUB-ASSEMBLY B | C20: 15 | D20: 3 | E20: 480 | F20: 1440 | G20: 150 | H20: 45 | I20: 0 | J20: 105 | K20: 1140 | L20: 384 | M20: 756 | N20: 29 | O20: 0 | P20: 0.065 | Q20: 1462.468966 | R20: 1277 | S20: 0.8731809222 | T20: ▲ | V20: 600 | Z20: YES/NO
A21: 12 | B21: OP D10 | C21: 15 | D21: 3 | E21: 480 | F21: 1440 | G21: 150 | H21: 45 | I21: 0 | J21: 110 | K21: 1135 | L21: 484 | M21: 651 | N21: 14.5 | O21: 0.025 | P21: 0.04 | Q21: 2586.041379 | R21: 1277 | S21: 0.4938049368 | V21: 450 | Z21: YES/NO
A22: 13 | B22: FINAL ASSEMBLY | C22: 15 | D22: 3 | E22: 480 | F22: 1440 | G22: 150 | H22: 45 | I22: 0 | J22: 30 | K22: 1215 | L22: 517 | M22: 698 | N22: 27 | O22: 0 | P22: 0.04 | Q22: 1489.066667 | R22: 1277 | S22: 0.8575841691 | T22: ▲ | V22: 2100 | Z22: YES/NO
A23: 14 | F23: 0 | K23: 0 | M23: 0 | P23: 0.04 | Q23: 0 | S23: 0 | Z23: YES/NO
A24: 15 | F24: 0 | K24: 0 | M24: 0 | P24: 0.04 | Q24: 0 | S24: 0 | Z24: YES/NO
A25: 16 | F25: 0 | K25: 0 | M25: 0 | P25: 0.04 | Q25: 0 | S25: 0 | Z25: YES/NO
A26: 17 | F26: 0 | K26: 0 | M26: 0 | P26: 0.04 | Q26: 0 | S26: 0 | Z26: YES/NO
A27: 18 | F27: 0 | K27: 0 | M27: 0 | P27: 0.04 | Q27: 0 | S27: 0 | Z27: YES/NO
A28: 19 | F28: 0 | K28: 0 | M28: 0 | P28: 0.04 | Q28: 0 | S28: 0 | Z28: YES/NO
A29: 20 | F29: 0 | K29: 0 | M29: 0 | P29: 0.04 | Q29: 0 | S29: 0 | T29: =IF(S29>0.8499,IF(S29>0.8999,"X",AG24),"") ->  | Z29: YES/NO
A31: Notes/Comments
B36: Legend | C36: ▲ | D36: Concern constraint - please check operations
C37: X | D37: Problem constraint - requires C3

Sheet C3 Instructions
A1: The purpose of this sheet is to analyze the operations and determine any Constraints within the System Level Analysis.
A3: A Constraint is defined as the operation with highest utilization in the Production Line.
A4: A Concern Constraint is any operation where the utilization is over 85%
A5: A Problem Constraint is any operation where the utilization is over 90%.
A7: Start with Worksheet by Shift
A8: Enter the process steps
A9: Enter the minutes per shift and time constraints in the non-shaded areas.
A10: Shifts per Week: input the number of working shifts per week for this production operation.
A11: Shifts per Day: input the number of working shifts per day for this production operation.
A12: Minutes per shift: input the number of total minutes per shift for this production operation.
A13: Scheduled Breaks: input in minutes the time spent PER DAY for breaks, lunches, meetings, any other scheduled breaks on this production operation if production stops during these events.
A14: Changeovers/Tool change: input in minutes the time spent PER DAY for tool changes, setups on this production operation, if production stops during tool changes & setups.
A15: Planned Maintenance: input in minutes the time spent PER DAY for planned/scheduled maintenance on this production operation.
A16: Unscheduled Downtime: input ESTIMATE in minutes the time spent PER DAY for UNSCHEDULED downtime (breakdowns) in this production operation.
A17: The calculations and the operations will automatically populate the C3 Constraint Capacity Estimate Sheet.
A20: C3 Constraint Capacity Estimate Sheet
A21: Please input data into NON-SHADED cells ONLY. Where there is no value to enter in each field, enter a 0.
A22: Shifts per Week: input the number of working shifts per week for this production operation.
A23: System Capacity - Where there is no value to enter in each field, enter a 0.
A24: Time allocated for other customers: input the total time (in minutes) allocated for other customers on this production operation.
A25: The definition of "other customers" includes all production for other products designated for Allison, which are not reflected in this Capacity Estimate, and for other non-Allison customers.
A26: Line Cycle Time Per Part: input the cycle time of the line in SECONDS PER PART.
A27: NOTE - If the final operation of the line produces more than one part per cycle, the Line Cycle time should be calculated by dividing the observed cycle time by the number of parts produced per cycle.
A28: Buffer Before/After Operation
A29: % Scrap: input the scrap rate for this production operation (enter as percentage, not fraction. Example: enter a 5% scrap rate as 5 not 0.05).
A30: CONTRACTED parts/day: input NEWLY contracted parts PER DAY which includes service parts requirement.
A31: RESULT - Where the Utilization is greater than 90%, a red X will appear in the Result Column. This identifies the Problem Constraint process steps.
A32: RESULT - Where the Utilization is greater than 85%, a yellow triangle ▲ will appear in the Result Column. This identifies the Concern Constraint process steps.
A34: Run at Rate Study Results
A35: Run at Rate Actual OK parts produced: input the number of OK parts produced during the run at rate study.
A36: Available Capacity > Contracted Capacity: If the available capacity of the system is greater than the contracted capacity, input "YES", otherwise input "NO".
A37: Run at Rate Actual Scrap: input the number of parts scrapped during the run at rate study.
A38: Run at Rate Actual Downtime: input the downtime in minutes during the run at rate study.
A41: Description of NON-Calculating Input Data fields in this capacity estimation tool:
A42: Supplier Name: input the name & location of supplier production for this part.
A43: Part(s) Name: input the part name based on the part contract. When the sheet applies to multiple parts, specify name of all the parts.
A44: Part(s) Number: input the Allison's part number (not the supplier's internal part number).
A45: When the sheet applies to multiple (family) parts, specify number of all the parts, starting with the part with the highest production quantity and ending with the part with the lowest quantity.
A46: Working Days per Year: input the number of working days per year the supplier operates as agreed upon in the contract.
A47: Contracted Capacity : input the CONTRACTED yearly and daily capacity.
A48: CONTRACTED CAPACITY SHOULD BE YEARLY CAPACITY/WORKING DAYS PER YEAR
A49: Increased Contracted Capacity: input the increased CONTRACTED yearly and daily capacity.
A50: INCREASED CONTRACTED CAPACITY SHOULD BE YEARLY CAPACITY/WORKING DAYS PER YEAR
A53: Actual Run at Rate Study Results
A54: Run at Rate Actual OK parts produced: input the number of OK parts produced during the run at rate study.
A55: Available Capacity > Contracted Capacity: If the available capacity of the system is greater than the contracted capacity, input "YES", otherwise input "NO".
A56: Run at Rate Actual Scrap: input the number of parts scrapped during the run at rate study.
A57: Run at Rate Actual Downtime: input the downtime in minutes during the run at rate study.

Sheet Worksheet by Shift
A3: Number | B3: List each separate process step in constraint operation | C3: Minutes Per Shift | G3: Scheduled Break/Lunch (minutes) | K3: Changeovers/Tool Changes (minutes) | O3: Planned Maintenance (minutes) | S3: Unscheduled Downtime (minutes)
C4: Shift 1 | D4: Shift 2 | E4: Shift 3 | F4: Per Day | G4: Shift 1 | H4: Shift 2 | I4: Shift 3 | J4: Per Day | K4: Shift 1 | L4: Shift 2 | M4: Shift 3 | N4: Per Day | O4: Shift 1 | P4: Shift 2 | Q4: Shift 3 | R4: Per Day | S4: Shift 1 | T4: Shift 2 | U4: Shift 3 | V4: Per Day
A5: 1 | B5: Process Step | F5: =C5+D5+E5 -> 0 | J5: =G5+H5+I5 -> 0 | N5: =K5+L5+M5 -> 0 | R5: =O5+P5+Q5 -> 0 | V5: =S5+T5+U5 -> 0
A6: 2 | B6: Process Step | F6: =C6+D6+E6 -> 0 | J6: =G6+H6+I6 -> 0 | N6: =K6+L6+M6 -> 0 | R6: =O6+P6+Q6 -> 0 | V6: =S6+T6+U6 -> 0
A7: 3 | B7: Process Step | F7: =C7+D7+E7 -> 0 | J7: 0 | N7: 0 | R7: =O7+P7+Q7 -> 0 | V7: 0
A8: 4 | B8: Process Step | F8: 0 | J8: 0 | N8: 0 | R8: 0 | V8: 0
A9: 5 | B9: Process Step | F9: 0 | J9: 0 | N9: 0 | R9: 0 | V9: 0
A10: 6 | B10: Process Step | F10: 0 | J10: 0 | N10: 0 | R10: 0 | V10: 0
A11: 7 | B11: Process Step | F11: 0 | J11: 0 | N11: 0 | R11: 0 | V11: 0
A12: 8 | B12: Process Step | F12: 0 | J12: 0 | N12: 0 | R12: 0 | V12: 0
A13: 9 | B13: Process Step | F13: 0 | J13: 0 | N13: 0 | R13: 0 | V13: 0
A14: 10 | B14: Process Step | F14: 0 | J14: 0 | N14: 0 | R14: =O14+P14+Q14 -> 0 | V14: 0
A15: 11 | B15: Process Step | F15: 0 | J15: 0 | N15: 0 | R15: 0 | V15: 0
A16: 12 | B16: Process Step | F16: 0 | J16: 0 | N16: 0 | R16: 0 | V16: 0
A17: 13 | B17: Process Step | F17: 0 | J17: 0 | N17: 0 | R17: 0 | V17: 0
A18: 14 | B18: Process Step | F18: 0 | J18: 0 | N18: 0 | R18: 0 | V18: 0
A19: 15 | B19: Process Step | F19: =C19+D19+E19 -> 0 | J19: =G19+H19+I19 -> 0 | N19: =K19+L19+M19 -> 0 | R19: =O19+P19+Q19 -> 0 | V19: =S19+T19+U19 -> 0
A20: 16 | B20: Process Step | F20: =C20+D20+E20 -> 0 | J20: =G20+H20+I20 -> 0 | N20: =K20+L20+M20 -> 0 | R20: =O20+P20+Q20 -> 0 | V20: =S20+T20+U20 -> 0
A21: 17 | B21: Process Step | F21: =C21+D21+E21 -> 0 | J21: =G21+H21+I21 -> 0 | N21: =K21+L21+M21 -> 0 | R21: =O21+P21+Q21 -> 0 | V21: =S21+T21+U21 -> 0
A22: 18 | B22: Process Step | F22: =C22+D22+E22 -> 0 | J22: =G22+H22+I22 -> 0 | N22: =K22+L22+M22 -> 0 | R22: =O22+P22+Q22 -> 0 | V22: =S22+T22+U22 -> 0
A23: 19 | B23: Process Step | F23: =C23+D23+E23 -> 0 | J23: =G23+H23+I23 -> 0 | N23: =K23+L23+M23 -> 0 | R23: =O23+P23+Q23 -> 0 | V23: =S23+T23+U23 -> 0
A24: 20 | B24: Process Step | F24: 0 | J24: 0 | N24: 0 | R24: 0 | V24: 0
A27: IN ALL COLUMNS, ENTER TIME IN MINUTES

Sheet C3 Constraint Capacity
A2: Supplier Name | AG2: ▲
A3: Part(s) Name
A4: Part(s) Number | R4: Complete Date
A5: Working Days per Year | R5: Completed by
A6: Contracted Capacity | C6: Annual | F6: Daily | R6: SQE Review Date | AG6: ▲
A7: Increased Contracted Capacity | C7: Annual | F7: Daily | R7: SQE Reviewed
B8: CONSTRAINT PROCESS : Sub Assembly C3
A10: OPERATIONS | C10: OPERATION AVAILABILITY (TIME) | J10: OPERATION CAPACITY (UNITS) | V10: RUN AT RATE STUDY RESULTS
A11: List each separate PROCESS STEOP in the Constraint Operation | C11: Shifts Per Week | D11: Gross Min Avail/day | E11: Scheduled Break/Lunch (minutes) | F11: Change-overs/Tool Changes (minutes) | G11: Planned Maintenance (minutes) | H11: Unscheduled Downtime (minutes) | I11: Net Available Minutes/day | J11: Time allocated for other customers (minutes) | K11: Net Minutes Available/day for Study Parts | L11: Operation Cycle Time Per Part (seconds) | M11: Buffer Before Operation | N11: Buffer After Operation | O11: % Scrap | P11: % True Scrap (Total Loss) | Q11: Estimated Throughput for study parts per day | R11: NEW CONTRACTED parts per day | S11: % Utilization | T11: Result >85% Concern >90 Problem | V11: Total "All Customers" Parts Produced | W11: Run at Rate Actual OK parts produced | X11: Available Capacity > Contracted Capacity? | Y11: Run at Rate Actual Scrap (part count) | Z11: Run at Rate Actual Downtime (minutes)
A12: 1 | D12: ='Worksheet by Shift'!F5 -> 0 | E12: ='Worksheet by Shift'!J5 -> 0 | F12: ='Worksheet by Shift'!N5 -> 0 | G12: ='Worksheet by Shift'!R5 -> 0 | H12: ='Worksheet by Shift'!V5 -> 0 | I12: =D12-E12-F12-G12-H12 -> 0 | K12: =I12-J12 -> 0 | P12: =SUM(O12:O31) -> 0 | Q12: =IF(L12<>0,(1-P12)*K12*60/L12,0) -> 0 | S12: =IF(Q12<>0,R12/Q12,0) -> 0 | T12: =IF(S12>0.8499,IF(S12>0.8999,"X",$AG$6),"") ->  | X12: YES/NO
A13: 2 | D13: ='Worksheet by Shift'!F6 -> 0 | E13: ='Worksheet by Shift'!J6 -> 0 | F13: ='Worksheet by Shift'!N6 -> 0 | G13: ='Worksheet by Shift'!R6 -> 0 | H13: ='Worksheet by Shift'!V6 -> 0 | I13: 0 | K13: 0 | P13: =SUM(O13:O32) -> 0 | Q13: 0 | S13: 0 | X13: YES/NO
A14: 3 | D14: ='Worksheet by Shift'!F7 -> 0 | E14: ='Worksheet by Shift'!J7 -> 0 | F14: ='Worksheet by Shift'!N7 -> 0 | G14: ='Worksheet by Shift'!R7 -> 0 | H14: ='Worksheet by Shift'!V7 -> 0 | I14: 0 | K14: 0 | P14: 0 | Q14: 0 | S14: 0 | X14: YES/NO
A15: 4 | D15: ='Worksheet by Shift'!F8 -> 0 | E15: ='Worksheet by Shift'!J8 -> 0 | F15: ='Worksheet by Shift'!N8 -> 0 | G15: ='Worksheet by Shift'!R8 -> 0 | H15: ='Worksheet by Shift'!V8 -> 0 | I15: 0 | K15: 0 | P15: 0 | Q15: 0 | S15: 0 | X15: YES/NO
A16: 5 | D16: ='Worksheet by Shift'!F9 -> 0 | E16: ='Worksheet by Shift'!J9 -> 0 | F16: ='Worksheet by Shift'!N9 -> 0 | G16: ='Worksheet by Shift'!R9 -> 0 | H16: ='Worksheet by Shift'!V9 -> 0 | I16: 0 | K16: 0 | P16: 0 | Q16: 0 | S16: 0 | X16: YES/NO
A17: 6 | D17: ='Worksheet by Shift'!F10 -> 0 | E17: ='Worksheet by Shift'!J10 -> 0 | F17: ='Worksheet by Shift'!N10 -> 0 | G17: ='Worksheet by Shift'!R10 -> 0 | H17: ='Worksheet by Shift'!V10 -> 0 | I17: 0 | K17: 0 | P17: 0 | Q17: 0 | S17: 0 | X17: YES/NO
A18: 7 | D18: ='Worksheet by Shift'!F11 -> 0 | E18: ='Worksheet by Shift'!J11 -> 0 | F18: ='Worksheet by Shift'!N11 -> 0 | G18: ='Worksheet by Shift'!R11 -> 0 | H18: ='Worksheet by Shift'!V11 -> 0 | I18: 0 | K18: 0 | P18: 0 | Q18: 0 | S18: 0 | X18: YES/NO
A19: 8 | D19: ='Worksheet by Shift'!F12 -> 0 | E19: ='Worksheet by Shift'!J12 -> 0 | F19: ='Worksheet by Shift'!N12 -> 0 | G19: ='Worksheet by Shift'!R12 -> 0 | H19: ='Worksheet by Shift'!V12 -> 0 | I19: 0 | K19: 0 | P19: 0 | Q19: 0 | S19: 0 | X19: YES/NO
A20: 9 | D20: ='Worksheet by Shift'!F13 -> 0 | E20: ='Worksheet by Shift'!J13 -> 0 | F20: ='Worksheet by Shift'!N13 -> 0 | G20: ='Worksheet by Shift'!R13 -> 0 | H20: ='Worksheet by Shift'!V13 -> 0 | I20: 0 | K20: 0 | P20: 0 | Q20: 0 | S20: 0 | X20: YES/NO
A21: 10 | D21: ='Worksheet by Shift'!F14 -> 0 | E21: ='Worksheet by Shift'!J14 -> 0 | F21: ='Worksheet by Shift'!N14 -> 0 | G21: ='Worksheet by Shift'!R14 -> 0 | H21: ='Worksheet by Shift'!V14 -> 0 | I21: 0 | K21: 0 | P21: 0 | Q21: 0 | S21: 0 | X21: YES/NO
A22: 11 | D22: ='Worksheet by Shift'!F15 -> 0 | E22: ='Worksheet by Shift'!J15 -> 0 | F22: ='Worksheet by Shift'!N15 -> 0 | G22: ='Worksheet by Shift'!R15 -> 0 | H22: ='Worksheet by Shift'!V15 -> 0 | I22: 0 | K22: 0 | P22: 0 | Q22: 0 | S22: 0 | X22: YES/NO
A23: 12 | D23: ='Worksheet by Shift'!F16 -> 0 | E23: ='Worksheet by Shift'!J16 -> 0 | F23: ='Worksheet by Shift'!N16 -> 0 | G23: ='Worksheet by Shift'!R16 -> 0 | H23: ='Worksheet by Shift'!V16 -> 0 | I23: 0 | K23: 0 | P23: 0 | Q23: 0 | S23: 0 | X23: YES/NO
A24: 13 | D24: ='Worksheet by Shift'!F17 -> 0 | E24: ='Worksheet by Shift'!J17 -> 0 | F24: ='Worksheet by Shift'!N17 -> 0 | G24: ='Worksheet by Shift'!R17 -> 0 | H24: ='Worksheet by Shift'!V17 -> 0 | I24: 0 | K24: 0 | P24: 0 | Q24: 0 | S24: 0 | X24: YES/NO
A25: 14 | D25: ='Worksheet by Shift'!F18 -> 0 | E25: ='Worksheet by Shift'!J18 -> 0 | F25: ='Worksheet by Shift'!N18 -> 0 | G25: ='Worksheet by Shift'!R18 -> 0 | H25: ='Worksheet by Shift'!V18 -> 0 | I25: 0 | K25: 0 | P25: 0 | Q25: 0 | S25: 0 | X25: YES/NO
A26: 15 | D26: ='Worksheet by Shift'!F19 -> 0 | E26: ='Worksheet by Shift'!J19 -> 0 | F26: ='Worksheet by Shift'!N19 -> 0 | G26: ='Worksheet by Shift'!R19 -> 0 | H26: ='Worksheet by Shift'!V19 -> 0 | I26: 0 | K26: 0 | P26: 0 | Q26: 0 | S26: 0 | X26: YES/NO
A27: 16 | D27: ='Worksheet by Shift'!F20 -> 0 | E27: ='Worksheet by Shift'!J20 -> 0 | F27: ='Worksheet by Shift'!N20 -> 0 | G27: ='Worksheet by Shift'!R20 -> 0 | H27: ='Worksheet by Shift'!V20 -> 0 | I27: 0 | K27: 0 | P27: 0 | Q27: 0 | S27: 0 | X27: YES/NO
A28: 17 | D28: ='Worksheet by Shift'!F21 -> 0 | E28: ='Worksheet by Shift'!J21 -> 0 | F28: ='Worksheet by Shift'!N21 -> 0 | G28: ='Worksheet by Shift'!R21 -> 0 | H28: ='Worksheet by Shift'!V21 -> 0 | I28: 0 | K28: 0 | P28: 0 | Q28: 0 | S28: 0 | X28: YES/NO
A29: 18 | D29: ='Worksheet by Shift'!F22 -> 0 | E29: ='Worksheet by Shift'!J22 -> 0 | F29: ='Worksheet by Shift'!N22 -> 0 | G29: ='Worksheet by Shift'!R22 -> 0 | H29: ='Worksheet by Shift'!V22 -> 0 | I29: 0 | K29: 0 | P29: 0 | Q29: 0 | S29: 0 | X29: YES/NO
A30: 19 | D30: ='Worksheet by Shift'!F23 -> 0 | E30: ='Worksheet by Shift'!J23 -> 0 | F30: ='Worksheet by Shift'!N23 -> 0 | G30: ='Worksheet by Shift'!R23 -> 0 | H30: ='Worksheet by Shift'!V23 -> 0 | I30: 0 | K30: 0 | P30: 0 | Q30: 0 | S30: 0 | X30: YES/NO
A31: 20 | D31: ='Worksheet by Shift'!F24 -> 0 | E31: ='Worksheet by Shift'!J24 -> 0 | F31: ='Worksheet by Shift'!N24 -> 0 | G31: ='Worksheet by Shift'!R24 -> 0 | H31: ='Worksheet by Shift'!V24 -> 0 | I31: 0 | K31: 0 | P31: 0 | Q31: 0 | S31: 0 | T31: =IF(S31>0.8499,IF(S31>0.8999,"X",AG26),"") ->  | X31: YES/NO
A33: Notes/Comments
B38: Legend | C38: ▲ | D38: Concern constraint - please check operations
C39: X | D39: Problem constraint

Sheet C3 Example
A1: Supplier Name | C1: XYZ Inc. | AG1: ▲
A2: Part(s) Name | C2: XYZ Assembly
A3: Part(s) Number | C3: XYZ000123 | R3: Complete Date | U3: 2008-08-01
A4: Working Days per Year | C4: 235 | R4: Completed by | U4: Bill the Supplier
A5: Contracted Capacity | C5: Annual | D5: 258500 | F5: Daily | G5: 1100 | R5: SQE Review Date | U5: 2008-08-25 | AG5: ▲
A6: Increased Contracted Capacity | C6: Annual | D6: 300000 | F6: Daily | G6: 1277 | R6: SQE Reviewed | U6: Joe the SQE
B7: CONSTRAINT PROCESS:SUB-ASSEMBLY C
A9: # | B9: OPERATIONS | C9: OPERATION AVAILABILITY (TIME) | J9: OPERATION CAPACITY (UNITS) | V9: RUN AT RATE STUDY RESULTS
B10: List each separate PROCESS STEP in the Constraint Operation | C10: Shifts Per Week | D10: Gross Min Avail/day | E10: Scheduled Break/Lunch (minutes) | F10: Changeovers/Tool Changes (minutes) | G10: Planned Maintenance (minutes) | H10: Unscheduled Downtime (minutes) | I10: Net Available Minutes/day | J10: Time allocated for other customers (minutes) | K10: Net Minutes Available/day for Study Parts | L10: Operation Cycle Time Per Part (seconds) | M10: Buffer Before Operation | N10: Buffer After Operation | O10: % Scrap | P10: % True Scrap (Total Loss) | Q10: Estimated Throughput for study parts per day | R10: NEW CONTRACTED parts per day | S10: % Utilization | T10: Result >85% Concern >90 Problem | V10: Total "All Customers" Parts Produced | W10: Run at Rate Actual OK parts produced | X10: Available Capacity > Contracted Capacity? | Y10: Run at Rate Actual Scrap (part count) | Z10: Run at Rate Actual Downtime (minutes)
A11: 1 | B11: LOAD | C11: 15 | D11: 1440 | E11: 150 | F11: 45 | G11: 0 | H11: 0 | I11: =D11-E11-F11-G11-H11 -> 1245 | J11: 566.67 | K11: =I11-J11 -> 678.33 | L11: 34 | M11: 0 | N11: 0 | O11: 0.01 | P11: 0.02 | Q11: =IF(L11<>0,(1-P11)*K11*60/L11,0) -> 1173.111882 | R11: 1277 | S11: =IF(Q11<>0,R11/Q11,0) -> 1.088557723 | T11: =IF(S11>0.8499,IF(S11>0.8999,"X",$AG$5),"") -> X | X11: YES/NO
A12: 2 | B12: PRESS | C12: 15 | D12: 1440 | E12: 150 | F12: 45 | G12: 0 | H12: 0 | I12: 1245 | J12: 566.67 | K12: 678.33 | L12: 10 | M12: 0 | N12: 0 | O12: 0 | P12: 0.01 | Q12: 4029.2802 | R12: 1277 | S12: 0.3169300561 | X12: YES/NO
A13: 3 | B13: WELD | C13: 15 | D13: 1440 | E13: 150 | F13: 45 | G13: 0 | H13: 0 | I13: 1245 | J13: 566.67 | K13: 678.33 | L13: 27 | M13: 0 | N13: 0 | O13: 0 | P13: 0.01 | Q13: 1492.326 | R13: 1277 | S13: 0.8557111516 | T13: ▲ | X13: YES/NO
A14: 4 | B14: INSPECT | C14: 15 | D14: 1440 | E14: 150 | F14: 45 | G14: 0 | H14: 0 | I14: 1245 | J14: 566.67 | K14: 678.33 | L14: 15 | M14: 0 | N14: 0 | O14: 0.01 | P14: =O14 -> 0.01 | Q14: 2686.1868 | R14: 1277 | S14: 0.4753950842 | X14: YES/NO
A15: 5 | B15: UNLOAD | C15: 15 | D15: 1440 | E15: 150 | F15: 45 | G15: 0 | H15: 0 | I15: 1245 | J15: 566.67 | K15: 678.33 | L15: 28 | M15: 0 | N15: 0 | O15: 0 | P15: 0 | Q15: 1453.564286 | R15: 1277 | S15: 0.8785301156 | T15: ▲ | X15: YES/NO
A16: 6 | D16: 0 | E16: 0 | F16: 0 | G16: 0 | H16: 0 | I16: 0 | K16: 0 | P16: 0 | Q16: 0 | S16: 0 | X16: YES/NO
A17: 7 | D17: 0 | E17: 0 | F17: 0 | G17: 0 | H17: 0 | I17: 0 | K17: 0 | P17: 0 | Q17: 0 | S17: 0 | X17: YES/NO
A18: 8 | D18: 0 | E18: 0 | F18: 0 | G18: 0 | H18: 0 | I18: 0 | K18: 0 | P18: 0 | Q18: 0 | S18: 0 | X18: YES/NO
A19: 9 | D19: 0 | E19: 0 | F19: 0 | G19: 0 | H19: 0 | I19: 0 | K19: 0 | P19: 0 | Q19: 0 | S19: 0 | X19: YES/NO
A20: 10 | D20: 0 | E20: 0 | F20: 0 | G20: 0 | H20: 0 | I20: 0 | K20: 0 | P20: 0 | Q20: 0 | S20: 0 | X20: YES/NO
A21: 11 | D21: 0 | E21: 0 | F21: 0 | G21: 0 | H21: 0 | I21: 0 | K21: 0 | P21: 0 | Q21: 0 | S21: 0 | X21: YES/NO
A22: 12 | D22: 0 | E22: 0 | F22: 0 | G22: 0 | H22: 0 | I22: 0 | K22: 0 | P22: 0 | Q22: 0 | S22: 0 | X22: YES/NO
A23: 13 | D23: 0 | E23: 0 | F23: 0 | G23: 0 | H23: 0 | I23: 0 | K23: 0 | P23: 0 | Q23: 0 | S23: 0 | X23: YES/NO
A24: 14 | D24: 0 | E24: 0 | F24: 0 | G24: 0 | H24: 0 | I24: 0 | K24: 0 | P24: 0 | Q24: 0 | S24: 0 | X24: YES/NO
A25: 15 | D25: 0 | E25: 0 | F25: 0 | G25: 0 | H25: 0 | I25: 0 | K25: 0 | P25: 0 | Q25: 0 | S25: 0 | X25: YES/NO
A26: 16 | D26: 0 | E26: 0 | F26: 0 | G26: 0 | H26: 0 | I26: 0 | K26: 0 | P26: 0 | Q26: 0 | S26: 0 | X26: YES/NO
A27: 17 | D27: 0 | E27: 0 | F27: 0 | G27: 0 | H27: 0 | I27: 0 | K27: 0 | P27: 0 | Q27: 0 | S27: 0 | X27: YES/NO
A28: 18 | D28: 0 | E28: 0 | F28: 0 | G28: 0 | H28: 0 | I28: 0 | K28: 0 | P28: 0 | Q28: 0 | S28: 0 | X28: YES/NO
A29: 19 | D29: 0 | E29: 0 | F29: 0 | G29: 0 | H29: 0 | I29: 0 | K29: 0 | P29: 0 | Q29: 0 | S29: 0 | X29: YES/NO
A30: 20 | D30: 0 | E30: 0 | F30: 0 | G30: 0 | H30: 0 | I30: 0 | K30: 0 | P30: 0 | Q30: 0 | S30: 0 | T30: =IF(S30>0.8499,IF(S30>0.8999,"X",AG25),"") ->  | X30: YES/NO
A32: Notes/Comments
B37: Legend | C37: ▲ | D37: Concern constraint - please check operations
C38: X | D38: Problem constraint
